fUSD/lending_fUSD_20260324
["ID","MTS","AMOUNT","RATE_DAILY","PERIOD"]
[408871401,1774367439211,-157.26,0.00015631,2]
[408871403,1774367439221,-433.0,0.00015637,2]
[408871405,1774367439230,-183.10929048,0.00015648,2]
[408871407,1774367439240,-162.500058,0.0001568,7]
[408871408,1774367439249,-2351.0,0.00015695,2]
[408871409,1774367439258,-200.0,0.000157,5]
[408871410,1774367439268,-2000.0,0.000157,2]
[408871411,1774367439277,-783.33806525,0.00015703,2]
[408871412,1774367439287,-7000.73956593,0.00015704,2]
[408871413,1774367439297,-1000.0,0.00015716,2]
[408871414,1774367439307,-152.6045041,0.00015741,2]
[408871415,1774367439317,-583.73,0.00015753,2]
[408871416,1774367439327,-1012.733,0.00015777,2]
[408871417,1774367439337,-200.0,0.000158,5]
[408871418,1774367439346,-2000.0,0.000158,2]
[408871419,1774367439356,-979.16666667,0.00015802,2]
[408871420,1774367439366,-160.0,0.00015802,2]
[408871421,1774367439376,-479.14336,0.0001584,2]
[408871422,1774367439386,-479.14337,0.0001584,2]
[408871423,1774367439396,-5000.0,0.00015843,2]
[408871424,1774367439472,-479.14337,0.0001585,2]
[408871425,1774367439482,-895.32,0.00015862,2]
[408871426,1774367439492,-500.0,0.00015899,2]
[408871427,1774367439501,-500.0,0.00015899,2]
[408871428,1774367439510,-500.0,0.00015899,2]
[408871429,1774367439520,-551.17091333,0.00015899,2]
[408871430,1774367439530,-500.0,0.00015899,2]
[408871431,1774367439539,-500.0,0.00015899,2]
[408871432,1774367439548,-169.97132888,0.00015899,2]
[408871433,1774367439558,-500.0,0.00015899,2]
[408871434,1774367439567,-500.0,0.00015899,2]
[408871435,1774367439576,-500.0,0.00015899,2]
[408871436,1774367439586,-500.0,0.00015899,2]
[408871437,1774367439595,-500.0,0.00015899,2]
[408871438,1774367439605,-500.0,0.00015899,2]
[408871439,1774367439615,-514.41322893,0.00015899,2]
[408871440,1774367439625,-500.0,0.00015899,2]
[408871441,1774367439634,-500.0,0.00015899,2]
[408871442,1774367439643,-500.0,0.00015899,2]
[408871443,1774367439653,-500.0,0.00015899,2]
[408871444,1774367439663,-500.0,0.00015899,2]
[408871445,1774367439672,-134162.03423911,0.000159,2]
[408871446,1774367439685,-1107.25820874,0.000159,2]
[408871447,1774367439694,-783.33806525,0.000159,2]
[408871448,1774367439704,-601.0,0.000159,5]
[408871449,1774367439713,-675.85873474,0.000159,2]
[408871450,1774367439722,-183.10929048,0.000159,2]
[408871451,1774367439732,-7000.73956593,0.000159,2]
[408871452,1774367439741,-2000.0,0.000159,2]
[408871453,1774367439751,-22498.8101533,0.00015942,2]
[408871455,1774367439761,-5913.0552265,0.00015943,2]
[408871456,1774367439771,-400.0,0.0001597,2]
[408871457,1774367439780,-400.0,0.0001597,2]
[408871458,1774367439789,-13959.0,0.00015973,2]
[408871459,1774367439798,-9401.0,0.00015973,2]
[408871460,1774367439807,-500.0,0.00015973,2]
[408871461,1774367439817,-500.0,0.00015973,2]
[408871462,1774367439826,-500.0,0.00015973,2]
[408871463,1774367439835,-366.41832896,0.00015973,2]
[408871464,1774367439844,-500.0,0.00015973,2]
[408871465,1774367439854,-500.0,0.00015973,2]
[408871466,1774367439863,-500.0,0.00015973,2]
[408871467,1774367439872,-500.0,0.00015973,2]
[408871468,1774367439881,-500.0,0.00015973,2]
[408871469,1774367439891,-500.0,0.00015973,2]
[408871470,1774367439900,-500.0,0.00015973,2]
[408871471,1774367439910,-500.0,0.00015973,2]
[408871472,1774367439919,-500.0,0.00015973,2]
[408871473,1774367439929,-500.0,0.00015973,2]
[408871474,1774367439938,-209.45111758,0.00015973,2]
[408871475,1774367439947,-500.0,0.00015973,2]
[408871476,1774367439957,-500.0,0.00015973,2]
[408871477,1774367439966,-260.73576739,0.0001599,2]
[408871478,1774367439976,-260.73576739,0.0001599,2]
[408871479,1774367439985,-260.73576739,0.0001599,2]
[408871480,1774367439994,-500.0,0.00015991,2]
[408871481,1774367440004,-168.0,0.00015992,2]
[408871482,1774367440013,-1033.0,0.00015996,5]
[408871483,1774367440023,-1045.0,0.00015996,2]
[408871484,1774367440032,-621.0,0.00015996,2]
[408871485,1774367440042,-1345.0,0.00015996,2]
[408871486,1774367440052,-3515.0,0.00015996,2]
[408871487,1774367440061,-1262.0,0.00015996,2]
[408871488,1774367440071,-924.0,0.00015996,2]
[408871489,1774367440080,-1215.0,0.00015996,2]
[408871490,1774367440089,-415.0,0.00015996,2]
[408871491,1774367440099,-2467.0,0.00015996,2]
[408871492,1774367440108,-522.2172541,0.00015999,2]
[408871493,1774367440117,-500.0,0.00015999,2]
[408871494,1774367440126,-500.0,0.00015999,2]
[408871495,1774367440136,-500.0,0.00015999,2]
[408871496,1774367440145,-500.0,0.00015999,2]
[408871497,1774367440154,-500.0,0.00015999,2]
[408871498,1774367440164,-1280.0,0.00016,5]
[408871499,1774367440173,-231481.51921934,0.00016,2]
[408871500,1774367440586,-1905.56227632,0.00016,2]
[408871501,1774367440619,-3762.0,0.00015996,2]
[408871502,1774367440629,-64274.75506698,0.00016,2]
[408871503,1774367440640,-8957.40077379,0.00016,2]
[408871504,1774367440699,-2205.0,0.00016,2]
[408871516,1774367443269,-1654.35819782,0.00016,2]
[408871517,1774367443288,-655.36256464,0.00016,2]
[408871518,1774367443300,-872.09758529,0.00016,2]
[408871520,1774367443612,-11008.84647383,0.00016,2]
[408871521,1774367443625,-5482.11036791,0.00016,2]
[408871522,1774367446038,-280.24378901,0.000159,2]
[408871523,1774367446051,-1356.08973014,0.000159,2]
[408871524,1774367446060,-26302.79199241,0.00016,2]
[408871525,1774367446114,-1299.96447365,0.00016,2]
[408871526,1774367446191,-1722.1,0.00016,2]
[408871527,1774367446203,-573.505,0.00016,2]
[408871546,1774368063188,-300.0,0.00013157,2]
[408871547,1774368063218,-200.0,0.00013158,2]
[408871548,1774368063246,-948.11,0.00013158,2]
[408871549,1774368063273,-500.0,0.00013158,2]
[408871550,1774368063469,-4612.32127139,0.00013158,2]
[408871551,1774368074358,-3451.61127139,0.00013158,2]
[408871552,1774368074393,-3096.78745722,0.00013158,2]
[408871571,1774368632241,-250.0,0.00013,2]
[408871572,1774368632251,-311.0,0.00013,2]
[408871573,1774368632262,-197.88958312,0.00013079,2]
[408871574,1774368632272,-3464.30639,0.00013637,2]
[408871575,1774368632282,-228.20571621,0.00013706,2]
[408871576,1774368632291,-166.66,0.00013708,2]
[408871577,1774368632301,-166.66,0.00013996,2]
[408871578,1774368632311,-1200.0,0.00013999,2]
[408871579,1774368632321,-839.2403,0.00014,2]
[408871580,1774368632331,-519.0,0.00014,2]
[408871581,1774368632341,-166.66,0.00014285,2]
[408871582,1774368632351,-200.0,0.00014287,2]
[408871583,1774368632361,-300.0,0.00014299,2]
[408871584,1774368632370,-300.0,0.00014299,2]
[408871585,1774368632380,-300.0,0.00014299,2]
[408871586,1774368632390,-200.0,0.000143,2]
[408871587,1774368632400,-2500.0,0.000143,2]
[408871588,1774368632409,-300.0,0.000143,2]
[408871589,1774368632419,-600.0,0.000143,2]
[408871590,1774368632429,-250.0,0.000143,2]
[408871591,1774368632439,-5000.0,0.000143,2]
[408871592,1774368632449,-250.0,0.000143,2]
[408871593,1774368632460,-150.0,0.00014311,2]
[408871594,1774368632469,-257.494777,0.00014399,2]
[408871595,1774368632478,-500.0,0.000144,2]
[408871596,1774368632487,-500.0,0.000144,2]
[408871597,1774368632496,-1200.0,0.00014468,2]
[408871598,1774368632506,-300.0,0.00014469,2]
[408871599,1774368632516,-356.71012656,0.00014474,2]
[408871600,1774368632525,-500.0,0.0001448,2]
[408871601,1774368632534,-150.0,0.00014487,2]
[408871602,1774368632543,-11864.78,0.00014488,2]
[408871603,1774368632552,-500.0,0.000145,2]
[408871604,1774368632561,-500.0,0.000145,2]
[408871605,1774368632571,-500.0,0.000145,2]
[408871606,1774368632579,-500.0,0.000145,2]
[408871607,1774368632589,-500.0,0.000145,2]
[408871608,1774368632598,-500.0,0.000145,2]
[408871609,1774368632607,-166.66,0.00014573,2]
[408871610,1774368632617,-388.69,0.0001459,2]
[408871611,1774368632626,-150.0,0.00014597,2]
[408871612,1774368632635,-150.0,0.00014597,2]
[408871613,1774368632645,-150.0,0.000146,2]
[408871614,1774368632654,-166.66,0.00014862,2]
[408871615,1774368632664,-370.8332,0.000149,2]
[408871616,1774368632673,-733.94746042,0.00014948,2]
[408871617,1774368632683,-600.0,0.00015,5]
[408871618,1774368632692,-150.0,0.00015026,2]
[408871619,1774368632702,-1200.0,0.000151,5]
[408871620,1774368632712,-578.20924308,0.00015125,2]
[408871621,1774368632722,-166.66,0.0001515,2]
[408871622,1774368632735,-1900.0,0.000152,5]
[408871623,1774368632746,-2500.0,0.000153,5]
[408871624,1774368632755,-1680.0,0.00015399,2]
[408871625,1774368632765,-3200.0,0.000154,5]
[408871626,1774368632776,-150.0,0.00015455,2]
[408871627,1774368632785,-600.0,0.000155,5]
[408871628,1774368632795,-4000.0,0.00015507,2]
[408871629,1774368632804,-150.0,0.00015535,2]
[408871630,1774368632816,-279.157962,0.00015536,2]
[408871631,1774368632825,-4018.2483,0.0001557,2]
[408871632,1774368632835,-600.0,0.000156,5]
[408871633,1774368632844,-255.0,0.00015617,2]
[408871634,1774368632853,-420.0,0.00015661,2]
[408871635,1774368632864,-379.0,0.00015661,2]
[408871636,1774368632873,-10512.3883016,0.0001567,2]
[408871637,1774368632885,-603.84235597,0.0001567,2]
[408871638,1774368632900,-440.0,0.0001567,2]
[408871639,1774368632912,-351.5299975,0.0001567,2]
[408871640,1774368632928,-4343.62922412,0.0001567,2]
[408871641,1774368632939,-478.50807902,0.0001567,2]
[408871642,1774368632950,-20049.0073551,0.0001567,2]
[408871643,1774368632962,-32202.36891006,0.0001567,2]
[408871644,1774368632972,-2222.99697214,0.00015673,2]
[408871645,1774368632982,-1500.0,0.0001568,2]
[408871646,1774368632992,-1500.0,0.0001568,2]
[408871647,1774368633001,-2597.449348,0.0001568,2]
[408871648,1774368633010,-2374.002028,0.0001568,2]
[408871649,1774368633020,-391.39,0.00015682,2]
[408871650,1774368633029,-700.0,0.00015682,2]
[408871651,1774368633039,-2222.9969721,0.00015698,2]
[408871652,1774368633049,-600.0,0.000157,5]
[408871653,1774368633058,-1262.0,0.00015712,2]
[408871654,1774368633067,-924.0,0.00015712,2]
[408871655,1774368633076,-1215.0,0.00015712,2]
[408871656,1774368633086,-2467.0,0.00015712,2]
[408871657,1774368633096,-6009.0,0.00015712,2]
[408871658,1774368633105,-2222.9969721,0.00015723,2]
[408871659,1774368633115,-2222.9969721,0.00015749,2]
[408871660,1774368633125,-1205.786,0.00015773,2]
[408871661,1774368633134,-2222.9969721,0.00015774,2]
[408871662,1774368633144,-186.427,0.00015779,2]
[408871663,1774368633154,-160.0,0.0001579,2]
[408871664,1774368633164,-979.16666667,0.0001579,2]
[408871665,1774368633174,-2222.9969721,0.00015799,2]
[408871666,1774368633184,-197.15,0.000158,2]
[408871667,1774368633195,-2872.7628,0.000158,2]
[408871668,1774368633205,-600.0,0.000158,5]
[408871669,1774368633219,-168.0,0.00015819,2]
[408871670,1774368633230,-2222.9969721,0.00015824,2]
[408871671,1774368633241,-239.57168,0.0001584,2]
[408871672,1774368633251,-239.57169,0.0001584,2]
[408871673,1774368633260,-403.0,0.00015844,2]
[408871674,1774368633270,-2222.9969721,0.0001585,2]
[408871675,1774368633280,-239.57169,0.0001585,2]
[408871676,1774368633290,-168.0,0.00015852,2]
[408871677,1774368633300,-193.47967851,0.00015873,2]
[408871678,1774368633312,-241.81002149,0.00015873,2]
[408871679,1774368633321,-2222.9969721,0.00015875,2]
[408871680,1774368633331,-2000.0,0.0001589,2]
[408871681,1774368633340,-4000.0,0.00015895,2]
[408871682,1774368633350,-500.0,0.00015899,2]
[408871683,1774368633361,-265.64642366,0.00015899,2]
[408871684,1774368633370,-632.69029445,0.000159,2]
[408871685,1774368633380,-1381.22288533,0.000159,2]
[408871686,1774368633390,-21095.86791548,0.000159,2]
[408871706,1774368633685,-163095.86393816,0.000159,2]
[408871707,1774368633702,-68720.50098,0.000159,2]
[408871711,1774368638077,-1583.06438875,0.000159,2]
[408871712,1774368638138,-1823.01325701,0.000159,2]
[408871713,1774368638300,-947.40000157,0.000159,2]
[408871714,1774368638311,-100931.69051903,0.000159,2]
[408871715,1774368638321,-150.0,0.000159,2]
[408871716,1774368638330,-150.0,0.000159,2]
[408871717,1774368638339,-1142.34227146,0.000159,2]
[408871718,1774368638349,-5000.0,0.000159,2]
[408871719,1774368638358,-150.0,0.000159,2]
[408871720,1774368638367,-1080.0,0.000159,5]
[408871721,1774368638376,-150.0,0.000159,2]
[408871722,1774368638386,-343.82052032,0.000159,2]
[408871723,1774368638395,-150.0,0.000159,2]
[408871724,1774368638404,-2222.9969721,0.000159,2]
[408871725,1774368638414,-386.9839,0.000159,2]
[408871726,1774368638424,-1613.7746445,0.00015906,2]
[408871727,1774368638434,-4823.811615,0.00015906,2]
[408871728,1774368638443,-293.134341,0.0001595,7]
[408871729,1774368638453,-3933.0,0.00015957,2]
[408871730,1774368638463,-500.0,0.00015973,2]
[408871732,1774368638472,-500.0,0.00015973,2]
[408871734,1774368638481,-500.0,0.00015973,2]
[408871736,1774368638491,-500.0,0.00015973,2]
[408871738,1774368638500,-500.0,0.00015973,2]
[408871740,1774368638509,-388.43757161,0.00015973,2]
[408871742,1774368638518,-500.0,0.00015973,2]
[408871744,1774368638527,-500.0,0.00015973,2]
[408871746,1774368638536,-500.0,0.00015973,2]
[408871748,1774368638546,-183.65884113,0.00015973,2]
[408871750,1774368638555,-501.20346017,0.00015973,2]
[408871752,1774368638565,-500.0,0.00015973,2]
[408871754,1774368638574,-500.0,0.00015973,2]
[408871756,1774368638583,-500.0,0.00015973,2]
[408871758,1774368638592,-621.0,0.00015996,2]
[408871760,1774368638602,-1045.0,0.00015996,2]
[408871762,1774368638612,-1345.0,0.00015996,2]
[408871764,1774368638621,-3515.0,0.00015996,2]
[408871766,1774368638631,-68067.75200671,0.00015999,2]
[408871822,1774368640294,-1118.86919853,0.00015999,2]
[408871823,1774368640306,-7414.26136894,0.00015999,2]
[408871824,1774368640317,-171.9186276,0.00015999,2]
[408871825,1774368640326,-31754.2342337,0.00015999,2]
[408871826,1774368640336,-155.0,0.00015999,2]
[408871827,1774368640345,-500.0,0.00015999,2]
[408871828,1774368640355,-500.0,0.00015999,2]
[408871829,1774368640365,-500.0,0.00015999,2]
[408871830,1774368640374,-500.0,0.00015999,2]
[408871831,1774368640383,-500.0,0.00015999,2]
[408871832,1774368640393,-396.19029102,0.00015999,2]
[408871833,1774368640402,-500.0,0.00015999,2]
[408871834,1774368640412,-500.0,0.00015999,2]
[408871835,1774368640421,-517.48850476,0.00015999,2]
[408871836,1774368640431,-500.0,0.00015999,2]
[408871837,1774368640441,-500.0,0.00015999,2]
[408871838,1774368640450,-500.0,0.00015999,2]
[408871839,1774368640460,-500.0,0.00015999,2]
[408871840,1774368640470,-246.01990542,0.00015999,2]
[408871841,1774368640480,-500.0,0.00015999,2]
[408871842,1774368640489,-500.0,0.00015999,2]
[408871843,1774368640499,-828.0,0.00016,5]
[408871844,1774368640508,-659.0,0.00016,5]
[408871845,1774368640517,-16512.1199292,0.00016,2]
[408871846,1774368640529,-504.28224,0.00016,2]
[408871847,1774368640592,-333.33252365,0.00016,2]
[408871848,1774368640603,-4544.0,0.00016,2]
[408871849,1774368640615,-1135.96567531,0.00016,2]
[408871850,1774368640881,-1135.4689447,0.00016,2]
[408871857,1774368643239,-415.0,0.00015712,2]
[408871858,1774368643263,-1493.95357177,0.00016,2]
[408871859,1774368643288,-4721.12556633,0.00016,2]
[408871860,1774368643428,-0.00032475,0.00016,2]
[408871861,1774368643440,-3594.06331873,0.00016,2]
[408871862,1774368643462,-117.77744475,0.00016,2]
[408871864,1774368643475,-312.20337,0.00016,2]
[408871866,1774368643487,-4051.58577808,0.00016,2]
[408871867,1774368646000,-9986.34346769,0.00016,2]
[408871872,1774368646055,-784.56414098,0.00016,2]
[408871874,1774368646111,-3845.22847368,0.00016,2]
[408871875,1774368646122,-784.78,0.00016,2]
[408871876,1774368646276,-426.64,0.00016,2]
[408871877,1774368646287,-494.61771879,0.00016,2]
[408871878,1774368646298,-7629.51241606,0.00016,2]
[408871879,1774368646309,-651.98542784,0.00016,2]
[408871880,1774368646336,-277.77499985,0.00016,2]
[408871884,1774368702483,219.87,7.541e-05,2]
[408871885,1774368702690,219.87,7.938e-05,2]
[408871886,1774368702897,219.87,8.334e-05,2]
[408871887,1774368703120,219.87,8.731e-05,2]
[408871888,1774368703324,219.87,9.128e-05,2]
[408871889,1774368703551,219.87,9.525e-05,2]
[408871890,1774368703944,219.87,9.922e-05,2]
[408871891,1774368704384,219.87,0.00010319,2]
[408871892,1774368704597,219.87,0.00010716,2]
[408871893,1774368704805,219.87,0.00011113,2]
[408871894,1774368705457,219.87,0.00011509,2]
[408871895,1774368705821,219.87,0.00011906,2]
[408871896,1774368705933,219.87,0.00012303,2]
[408871897,1774368706004,219.87,0.000127,2]
[408871900,1774368983294,-250.0,0.00011805,2]
[408871901,1774369274413,-290.0,0.00011805,2]
[408871902,1774369274434,-1196.75,0.00011805,2]
[408871903,1774369338396,-219.87,0.00013097,2]
[408871904,1774369338419,-732.78283181,0.00013394,2]
[408871905,1774369338443,-219.87,0.00013494,2]
[408871906,1774369338469,-150.0,0.00013631,2]
[408871907,1774369338493,-219.87,0.00013891,2]
[408871908,1774369338517,-310.95,0.00013899,2]
[408871909,1774369338540,-2000.0,0.00013961,2]
[408871910,1774369338565,-150.0,0.00014,2]
[408871911,1774369338589,-510.0,0.00014,2]
[408871912,1774369338612,-1200.0,0.00014009,2]
[408871913,1774369338639,-300.0,0.00014009,2]
[408871914,1774369338663,-300.0,0.00014009,2]
[408871915,1774369338686,-6985.43,0.0001401,2]
[408871916,1774369338709,-732.7828318,0.00014048,2]
[408871917,1774369338732,-150.0,0.00014084,2]
[408871918,1774369338756,-150.0,0.00014268,2]
[408871919,1774369338778,-500.0,0.00014285,2]
[408871920,1774369338800,-2500.0,0.00014285,2]
[408871921,1774369338964,-1000.30778015,0.00014285,2]
[408871922,1774369338992,-300.0,0.00014285,2]
[408871923,1774369339017,-300.0,0.00014285,2]
[408871924,1774369339039,-300.0,0.00014285,2]
[408871925,1774369339061,-600.0,0.00014285,2]
[408871926,1774369339083,-568.13655624,0.00014287,2]
[408871927,1774369590266,-394.8,0.00014146,2]
[408871928,1774369590289,-244.26094394,0.00014187,2]
[408871929,1774369590311,-230.56337499,0.00014197,2]
[408871951,1774369742023,2522.87537004,0.0001185,2]
[408871952,1774369747243,-510.8138,0.00014,2]
[408871953,1774369747263,-597.31662501,0.00014197,2]
[408871954,1774369747284,-1200.0,0.00014286,2]
[408871955,1774369747311,-1266.60344376,0.00014287,2]
[408871956,1774369747336,-3165.70613123,0.00014287,2]
[408871962,1774369832251,-335.0,0.00014287,2]
[408871964,1774369832261,-74.29386877,0.00014287,2]
[408871965,1774369832271,-219.87,0.00014288,2]
[408871966,1774369832280,-162.8406293,0.00014337,2]
[408871967,1774369832291,-1200.0,0.00014436,2]
[408871968,1774369832301,-9187.09,0.00014437,2]
[408871969,1774369832311,-162.84062928,0.00014469,2]
[408871970,1774369832320,-150.0,0.00014553,2]
[408871971,1774369832330,-219.87,0.00014684,2]
[408871972,1774369832340,-150.4393191,0.00014691,2]
[408871973,1774369832349,-300.0,0.00014691,2]
[408871974,1774369832359,-150.0,0.00014691,2]
[408871975,1774369832370,-74141.96073594,0.00014692,2]
[408871976,1774369832382,-3904.47098206,0.00014692,2]
[408871977,1774369832399,-662.72173973,0.00014692,2]
[408871978,1774369832424,-596.61311656,0.00014692,2]
[408871979,1774369832436,-115916.52752571,0.00014692,2]
[408871980,1774369832446,-150.0,0.000147,2]
[408871981,1774369832455,-95352.72,0.00014791,2]
[408871982,1774369832465,-436.3385899,0.00014828,2]
[408871983,1774369832475,-159.0,0.00014928,2]
[408871984,1774369832484,-436.33858988,0.00014981,2]
[408871985,1774369832494,-150.0,0.00014981,2]
[408871986,1774369832503,-248.76,0.00015023,2]
[408871987,1774369832513,-219.87,0.00015081,2]
[408871988,1774369832522,-1640.0,0.00015099,2]
[408871989,1774369832532,-1325.44812408,0.00015099,2]
[408871990,1774369832542,-436.52,0.00015128,2]
[408871991,1774369832551,-500.0,0.00015178,2]
[408871992,1774369832561,-1640.0,0.00015186,2]
[408871993,1774369832570,-1325.44812399,0.00015188,2]
[408871994,1774369832580,-329.25,0.00015199,2]
[408871995,1774369832589,-708.33297702,0.00015199,2]
[408871996,1774369832600,-500.0,0.00015199,2]
[408871997,1774369832609,-500.0,0.00015199,2]
[408871998,1774369832618,-151.0,0.00015199,2]
[408871999,1774369832628,-9552.16786547,0.00015199,2]
[408872000,1774369832639,-695.39793187,0.00015199,2]
[408872001,1774369832649,-500.0,0.00015199,2]
[408872002,1774369832658,-500.0,0.00015199,2]
[408872003,1774369832667,-500.0,0.00015199,2]
[408872004,1774369832676,-500.0,0.00015199,2]
[408872005,1774369832686,-500.0,0.00015199,2]
[408872006,1774369832695,-500.0,0.00015199,2]
[408872007,1774369832704,-500.0,0.00015199,2]
[408872008,1774369832714,-500.0,0.00015199,2]
[408872009,1774369832723,-500.0,0.00015199,2]
[408872010,1774369832732,-500.0,0.00015199,2]
[408872011,1774369832742,-500.0,0.00015199,2]
[408872012,1774369832751,-500.0,0.00015199,2]
[408872013,1774369832761,-500.0,0.00015199,2]
[408872014,1774369832775,-500.0,0.00015199,2]
[408872015,1774369832784,-500.0,0.00015199,2]
[408872016,1774369832794,-500.0,0.00015199,2]
[408872017,1774369832803,-500.0,0.00015199,2]
[408872018,1774369832813,-500.0,0.00015199,2]
[408872019,1774369832822,-500.0,0.00015199,2]
[408872020,1774369832830,-500.0,0.00015199,2]
[408872021,1774369833095,-500.0,0.00015199,2]
[408872022,1774369833167,-500.0,0.00015199,2]
[408872023,1774369833177,-500.0,0.00015199,2]
[408872024,1774369833187,-500.0,0.00015199,2]
[408872025,1774369833196,-500.0,0.00015199,2]
[408872026,1774369833206,-500.0,0.00015199,2]
[408872027,1774369833215,-200.0,0.00015199,2]
[408872028,1774369833227,-500.0,0.00015199,2]
[408872029,1774369833237,-500.0,0.00015199,2]
[408872030,1774369833246,-500.0,0.00015199,2]
[408872031,1774369833256,-500.0,0.00015199,2]
[408872033,1774369833265,-500.0,0.00015199,2]
[408872035,1774369833274,-500.0,0.00015199,2]
[408872037,1774369833284,-151.0,0.00015199,2]
[408872039,1774369833293,-693.3919763,0.00015199,2]
[408872041,1774369833302,-250.0,0.00015199,2]
[408872043,1774369833311,-250.0,0.00015199,2]
[408872045,1774369833321,-174.61919141,0.00015199,2]
[408872047,1774369833330,-250.0,0.00015199,2]
[408872048,1774369833339,-250.0,0.00015199,2]
[408872050,1774369833348,-209.40437684,0.00015199,2]
[408872051,1774369833358,-262.90206542,0.00015199,2]
[408872052,1774369833367,-250.0,0.00015199,2]
[408872053,1774369833376,-250.0,0.00015199,2]
[408872054,1774369833385,-250.0,0.00015199,2]
[408872055,1774369833395,-250.0,0.00015199,2]
[408872056,1774369833405,-250.0,0.00015199,2]
[408872057,1774369833414,-151.0,0.00015199,2]
[408872058,1774369833424,-250.0,0.00015199,2]
[408872059,1774369833433,-156.587,0.00015199,2]
[408872060,1774369833443,-279.9045709,0.00015199,2]
[408872061,1774369833452,-250.0,0.00015199,2]
[408872062,1774369833461,-194.37971726,0.00015199,2]
[408872063,1774369833471,-743.50770149,0.00015199,2]
[408872064,1774369833480,-500.0,0.00015199,2]
[408872065,1774369833489,-500.0,0.00015199,2]
[408872066,1774369833498,-500.0,0.00015199,2]
[408872067,1774369833508,-500.0,0.00015199,2]
[408872068,1774369833518,-500.0,0.00015199,2]
[408872069,1774369833527,-500.0,0.00015199,2]
[408872070,1774369833537,-2500.0,0.00015219,2]
[408872071,1774369833546,-242.382022,0.00015225,2]
[408872072,1774369833555,-300.28216329,0.00015225,2]
[408872073,1774369833564,-500.0,0.0001525,2]
[408872074,1774369833574,-169.39313664,0.0001525,2]
[408872075,1774369833583,-9905.5980765,0.00015254,2]
[408872076,1774369833593,-500.0,0.00015254,2]
[408872077,1774369833606,-151.0,0.00015254,2]
[408872078,1774369833615,-272.62944185,0.00015254,2]
[408872079,1774369833625,-1325.44812399,0.00015277,2]
[408872080,1774369833634,-500.30675433,0.00015286,2]
[408872081,1774369833644,-504.00492722,0.00015286,2]
[408872082,1774369833653,-500.45556563,0.00015286,2]
[408872083,1774369833663,-500.0,0.00015286,2]
[408872084,1774369833672,-500.0,0.00015286,2]
[408872085,1774369833682,-500.0,0.00015286,2]
[408872086,1774369833691,-218.71564775,0.00015286,2]
[408872087,1774369833700,-500.0,0.00015286,2]
[408872088,1774369833710,-1640.0,0.00015306,2]
[408872089,1774369833719,-10272.10520533,0.00015309,2]
[408872090,1774369833729,-500.0,0.00015309,2]
[408872091,1774369833738,-151.0,0.00015309,2]
[408872092,1774369833748,-282.71673119,0.00015309,2]
[408872093,1774369833757,-349.77,0.0001531,2]
[408872094,1774369833769,-9999.99,0.0001531,2]
[408872095,1774369833778,-1640.0,0.00015319,2]
[408872096,1774369833788,-1640.0,0.00015361,2]
[408872097,1774369833797,-10652.17309792,0.00015364,2]
[408872098,1774369833807,-500.0,0.00015364,2]
[408872099,1774369833816,-151.0,0.00015364,2]
[408872100,1774369833826,-1325.44812399,0.00015366,2]
[408872101,1774369833836,-150.0,0.00015409,2]